{"text_format":"1","workbook":"xlsx","n_sheets":3,"sheets":["Instructions","CTDI","AG2 Data"],"not_rendered":{"charts":0,"images":5,"macros":1,"external_links":0,"defined_names":0,"comments":0,"pivot_tables":0},"unopened":[],"bounds":{"document_bytes":16777216,"sheet_cells":100000,"rows_first":2000,"rows_last":500,"rows_between":2000,"halvings":0,"cell_chars":16384,"cell_head_chars":4096},"cells_cut":0,"cells_raw":0,"read":"whole","date_system":"1900"}

{"sheet":"Instructions","index":0,"n_rows":122,"n_cols":9,"rows_kept":122,"cut":false,"hidden":false,"merged":[[0,0,0,8]]}
["Instructions"]
["Launch Accu-Gold 2"]
[]
["Connect the Ion Chamber Only and Digitizer module to the PC via USB or WiFi."]
["(WiFi can be used only for Nugget and Touch Pro based systems. )"]
[]
["Enter the settings/criteria on the \"CTDI\" workbook in the blue shaded cells for the applicable position. "]
[]
[null,"User Entry "]
[]
["Set","Eff.","Time","Collimation","Slices","Table D","Scan Length"]
["kVp","mAs","Sec.","T (mm)","N #","L mm","cm"]
[]
[]
["Activate Companion mode"]
[]
[]
[]
[]
[]
[]
[]
[]
[]
[]
[]
[]
[]
["If the software is already open you can just click the \"Toggle\" button"]
[]
[]
[]
[]
[]
[]
[]
[]
[]
[]
[]
[]
[]
[]
[]
[]
["Accu-Gold 2 will automatically re-size the template and application so they can be viewed"]
["simultaneously. "]
[]
[]
[]
[]
[]
[]
[]
[]
[]
[]
[]
[]
[]
[]
[]
[]
[]
["Place the Ion Chamber in position"]
[]
["On Accu-Gold 2 adjust the \"Direct Link to Excel\" options to \"Accu-Gold Format\" and check the"]
["box for \"Auto Send\""]
[]
[]
[]
[]
[]
[]
[]
[]
["You can now select the first output cell on the \"AG2 Data\" sheet"]
["Isocenter (A)","B4"]
["12:00 (B)","B9"]
["3:00 (E)","B14"]
["9:00 (D)","B19"]
["6:00 (C)","B24"]
[]
["All test sections can be used in any order of choice by selecting"]
["the appropriate start cell. "]
[]
["The test data can be deleted from each section independently by clicking"]
["the button to the right of the test section."]
[]
["After the cell has been selected go to the Accu-Gold 2 \"Direct Link to Excel\" options and"]
["click \"Get Cell\". The selected cell and template name will show in the same field."]
[]
["You can now click the \"Start\" button and begin taking measurement."]
[]
[]
[]
[]
[]
[]
[]
[]
[]
[]
[]
[]
["When changing position make sure to stop the software otherwise false triggers"]
["can be produced/recorded. "]
[]
["Notes:"]
[]
["When you have competed the inspection it is recommended you save as a PDF instead of "]
["saving over the original template."]
[]
["You can capture data a review the \"AG2 Data\" or \"CTDI\" sheet as needed."]
[]
["Stopping Accu-Gold 2 to \"Get Cell\" is not required"]
[]
["\"Direct Link to Excel\" will work with both USB and Wifi connectivity "]
[]
["\"AG2 Data\" output can be entered manually"]
[]
["For assistance contact cust_sup@radcal.com",null,null,null,null,null,null,null,"2017-05-09"]

{"sheet":"CTDI","index":1,"n_rows":44,"n_cols":25,"rows_kept":44,"cut":false,"hidden":false,"merged":[[36,0,36,2],[38,0,38,2],[41,0,41,2],[29,1,29,2],[30,1,30,2],[31,1,31,2],[32,1,32,2],[33,1,33,2],[22,5,22,6],[23,5,23,6],[25,1,25,2],[26,1,26,2],[27,1,27,2],[26,4,26,6],[20,5,20,6],[21,5,21,6],[15,1,15,2],[16,1,16,2],[17,1,17,2],[18,1,18,2],[19,1,19,2],[15,5,15,6],[16,5,16,6],[17,5,17,6],[18,5,18,6],[19,5,19,6],[9,1,9,2],[10,1,10,2],[11,1,11,2],[28,1,28,2],[21,1,21,2],[22,1,22,2],[23,1,23,2],[12,1,12,2],[5,1,5,2],[6,1,6,2],[0,0,0,6],[20,1,20,2],[13,1,13,2],[5,5,5,6],[6,5,6,6],[7,5,7,6],[8,5,8,6],[9,5,9,6],[10,5,10,6],[11,5,11,6],[12,5,12,6],[13,5,13,6],[7,1,7,2],[8,1,8,2]]}
["Radcal CTDI Measurement Tool",null,null,null,null,null,null,null,null,null,null,null,null,null,null,null,null,null,null,null,null,null,null,null,"Accu-Gold: Version 8.10.0486; DLL 2.00.0469"]
["Set","Eff.","Time","Collimation","Slices","Table D","Scan Length"]
["kVp","mAs","Sec.","T (mm)","N #","L mm","cm"]
[120,320,0.5,1.2,32,38.4,3.84,null,null,null,null,null,null,null,null,null,null,null,null,null,null,null,null,null,"10:16:09"]
[]
["Isocenter (A)","mGy",null,null,"12:00 (B)","mGy"]
["Meas #1",{"$f":"'AG2 Data'!AT4","v":0},null,null,"Meas #1",{"$f":"'AG2 Data'!AT9","v":0}]
["Meas #2",{"$f":"'AG2 Data'!AT5","v":0},null,null,"Meas #2",{"$f":"'AG2 Data'!AT10","v":0}]
["Meas #3",{"$f":"'AG2 Data'!AT6","v":0},null,null,"Meas #3",{"$f":"'AG2 Data'!AT11","v":0}]
["Avg",{"$f":"AVERAGE(B7:B9)","v":0},null,null,"Avg",{"$f":"AVERAGE(F7:F9)","v":0}]
["CV",{"$f":"STDEV(B7:B9)/B10","v":{"$error":"#DIV/0!"}},null,null,"CV",{"$f":"STDEV(F7:F9)/F10","v":{"$error":"#DIV/0!"}}]
["CTDI",{"$f":"((100*B10)/($D$4*$E$4))","v":0},null,null,"CTDI",{"$f":"((100*F10)/($D$4*$E$4))","v":0}]
["Nom. CTDI",9.9,null,null,"Nom. CTDI",18.5]
["Deviation",{"$f":"(B13-B12)/B13","v":1},null,null,"Deviation",{"$f":"(F13-F12)/F13","v":1}]
[]
["3:00 (E)","mGy",null,null,"9:00 (D)","mGy"]
["Meas #1",{"$f":"'AG2 Data'!AT14","v":0},null,null,"Meas #1",{"$f":"'AG2 Data'!AT19","v":0}]
["Meas #2",{"$f":"'AG2 Data'!AT15","v":0},null,null,"Meas #2",{"$f":"'AG2 Data'!AT20","v":0}]
["Meas #3",{"$f":"'AG2 Data'!AT16","v":0},null,null,"Meas #3",{"$f":"'AG2 Data'!AT21","v":0}]
["Avg",{"$f":"AVERAGE(B17:B19)","v":0},null,null,"Avg",{"$f":"AVERAGE(F17:F19)","v":0}]
["CV",{"$f":"STDEV(B17:B19)/B20","v":{"$error":"#DIV/0!"}},null,null,"CV",{"$f":"STDEV(F17:F19)/F20","v":{"$error":"#DIV/0!"}}]
["CTDI",{"$f":"((100*B20)/($D$4*$E$4))","v":0},null,null,"CTDI",{"$f":"((100*F20)/($D$4*$E$4))","v":0}]
["Nom. CTDI",18.5,null,null,"Nom. CTDI",18.399999999999999]
["Deviation",{"$f":"(B23-B22)/B23","v":1},null,null,"Deviation",{"$f":"(F23-F22)/F23","v":1}]
[]
["6:00 (C)","mGy"]
["Meas #1",{"$f":"'AG2 Data'!AT24","v":0},null,null,"Cell Data"]
["Meas #2",{"$f":"'AG2 Data'!AT25","v":0},null,null,null,"Digitizer Dose Output"]
["Meas #3",{"$f":"'AG2 Data'!AT26","v":0},null,null,null,"Calculation"]
["Avg",{"$f":"AVERAGE(B27:B29)","v":0},null,null,null,"User Entry "]
["CV",{"$f":"STDEV(B27:B29)/B30","v":{"$error":"#DIV/0!"}}]
["CTDI",{"$f":"((100*B30)/($D$4*$E$4))","v":0}]
["Nom. CTDI",17.899999999999999]
["Deviation",{"$f":"(B33-B32)/B33","v":1}]
[]
[null,null,null,"Meas","NOM","Deviation"]
["Average (B-E)",null,null,{"$f":"AVERAGE(F12,B22,B32,F22)","v":0},18.3,{"$f":"(D37-E37)/E37","v":-1}]
[null,null,null,"Meas","NOM","Deviation"]
["CTDIw (mGy)",null,null,{"$f":"(0.667*F12) +(0.333*B12)","v":0},15.5,{"$f":"(D39-E39)/E39","v":-1}]
[null,null,null,null,null,"= (C/l & 12:00 data only)"]
[]
["Dose estimates based on CTDIw"]
[null,null,"CTDIvol",{"$f":"IF(G4=\"\",\"N/A\",D39*E4*D4/F4)","v":0},"mGy","=CTDIw*N*T/L"]
[null,null,"DLP",{"$f":"IF(D43=\"N/A\",\"N/A\",D43*G4)","v":0},"mGy-cm","=CTDIvol*Scan Length"]

{"sheet":"AG2 Data","index":2,"n_rows":26,"n_cols":87,"rows_kept":26,"cut":false,"hidden":false,"merged":[[22,58,22,59],[22,49,22,50],[22,3,22,4],[22,45,22,46],[22,47,22,48],[22,56,22,57],[12,58,12,59],[17,3,17,4],[17,45,17,46],[17,47,17,48],[17,56,17,57],[17,58,17,59],[12,3,12,4],[12,45,12,46],[12,47,12,48],[12,56,12,57],[12,49,12,50],[17,49,17,50],[2,58,2,59],[7,3,7,4],[7,45,7,46],[7,47,7,48],[7,56,7,57],[7,58,7,59],[2,3,2,4],[2,45,2,46],[2,47,2,48],[2,56,2,57],[2,49,2,50],[7,49,7,50]]}
[]
[]
["Isocenter (A)","Index","Date/Time","Time",null,null,null,null,null,null,null,null,null,null,null,null,null,null,null,null,null,null,null,null,null,null,null,null,null,null,null,null,null,null,null,null,null,null,null,null,null,null,null,null,null,"Dose",null,"Dose-Rate",null,"Dose/Pulse",null,null,null,null,null,null,"Temperature",null,"Air Pressure"]
["Meas #1",null,null,null,null,null,null,null,null,null,null,null,null,null,null,null,null,null,null,null,null,null,null,null,null,null,null,null,null,null,null,null,null,null,null,null,null,null,null,null,null,null,null,null,null,null,null,null,null,null,null,null,null,null,null,null,null,null,null,null,null,"",null,"",null,"",null,"",null,null,null,null,"",null,"",null,"",null,"",null,"","","","","03-9974","",""]
["Meas #2",null,null,null,null,null,null,null,null,null,null,null,null,null,null,null,null,null,null,null,null,null,null,null,null,null,null,null,null,null,null,null,null,null,null,null,null,null,null,null,null,null,null,null,null,null,null,null,null,null,null,null,null,null,null,null,null,null,null,null,null,"",null,"",null,"",null,"",null,null,null,null,"",null,"",null,"",null,"",null,"","","","","03-9974","",""]
["Meas #3",null,null,null,null,null,null,null,null,null,null,null,null,null,null,null,null,null,null,null,null,null,null,null,null,null,null,null,null,null,null,null,null,null,null,null,null,null,null,null,null,null,null,null,null,null,null,null,null,null,null,null,null,null,null,null,null,null,null,null,null,"",null,"",null,"",null,"",null,null,null,null,"",null,"",null,"",null,"",null,"","","","","03-9974","",""]
[null,null,null,null,null,null,null,null,null,null,null,null,null,null,null,null,null,null,null,null,null,null,null,null,null,null,null,null,null,null,null,null,null,null,null,null,null,null,null,null,null,null,null,null,null,null,null,null,null,null,null,null,null,null,null,null,null,null,null,null,null,"",null,"",null,"",null,"",null,null,null,null,"",null,"",null,"",null,"",null,"","","","","03-9974","",""]
["12:00 (B)","Index","Date/Time","Time",null,null,null,null,null,null,null,null,null,null,null,null,null,null,null,null,null,null,null,null,null,null,null,null,null,null,null,null,null,null,null,null,null,null,null,null,null,null,null,null,null,"Dose",null,"Dose-Rate",null,"Dose/Pulse",null,null,null,null,null,null,"Temperature",null,"Air Pressure",null,null,null,null,null,null,null,null,null,null,null,null,null,null,null,null,null,null,null,null,null,null,null,null,null,2949029]
["Meas #1"]
["Meas #2"]
["Meas #3"]
[]
["3:00 (E)","Index","Date/Time","Time",null,null,null,null,null,null,null,null,null,null,null,null,null,null,null,null,null,null,null,null,null,null,null,null,null,null,null,null,null,null,null,null,null,null,null,null,null,null,null,null,null,"Dose",null,"Dose-Rate",null,"Dose/Pulse",null,null,null,null,null,null,"Temperature",null,"Air Pressure"]
["Meas #1"]
["Meas #2"]
["Meas #3"]
[]
["9:00 (D)","Index","Date/Time","Time",null,null,null,null,null,null,null,null,null,null,null,null,null,null,null,null,null,null,null,null,null,null,null,null,null,null,null,null,null,null,null,null,null,null,null,null,null,null,null,null,null,"Dose",null,"Dose-Rate",null,"Dose/Pulse",null,null,null,null,null,null,"Temperature",null,"Air Pressure"]
["Meas #1"]
["Meas #2"]
["Meas #3"]
[]
["6:00 (C)","Index","Date/Time","Time",null,null,null,null,null,null,null,null,null,null,null,null,null,null,null,null,null,null,null,null,null,null,null,null,null,null,null,null,null,null,null,null,null,null,null,null,null,null,null,null,null,"Dose",null,"Dose-Rate",null,"Dose/Pulse",null,null,null,null,null,null,"Temperature",null,"Air Pressure"]
["Meas #1"]
["Meas #2"]
["Meas #3"]